fUST/lending_fUST_20250520
["ID","MTS","AMOUNT","RATE_DAILY","PERIOD"]
[361659442,1747673439178,-430.0,0.00019178,2]
[361659443,1747673439188,-430.0,0.00019178,2]
[361659444,1747673439197,-1858.26,0.00019178,2]
[361659445,1747673439206,-151.0,0.00019178,2]
[361659446,1747673439215,-430.0,0.00019178,2]
[361659447,1747673439224,-430.0,0.00019178,2]
[361659448,1747673439233,-400.0,0.00019178,2]
[361659449,1747673439242,-5390.0,0.00019178,2]
[361659450,1747673439251,-430.0,0.00019178,2]
[361659451,1747673439260,-430.0,0.00019178,2]
[361659452,1747673439270,-430.0,0.00019178,2]
[361659453,1747673439279,-430.0,0.00019178,2]
[361659454,1747673439288,-430.0,0.00019178,2]
[361659455,1747673439297,-1672.53,0.00019178,2]
[361659456,1747673439308,-430.0,0.00019178,2]
[361659457,1747673439317,-430.0,0.00019178,2]
[361659458,1747673439326,-430.0,0.00019178,2]
[361659459,1747673439335,-400.0,0.00019178,2]
[361659460,1747673439345,-430.0,0.00019178,2]
[361659461,1747673439354,-430.0,0.00019178,2]
[361659463,1747673439363,-430.0,0.00019178,2]
[361659465,1747673439373,-430.0,0.00019178,2]
[361659466,1747673439382,-430.0,0.00019178,2]
[361659467,1747673439391,-1114.76,0.00019178,2]
[361659468,1747673439400,-400.72326721,0.00019178,2]
[361659469,1747673439409,-345.80044518,0.00019178,2]
[361659470,1747673439419,-430.0,0.00019178,2]
[361659471,1747673439429,-430.0,0.00019178,2]
[361659472,1747673439439,-430.0,0.00019178,2]
[361659473,1747673439448,-430.0,0.00019178,2]
[361659474,1747673439457,-469.62,0.00019178,2]
[361659475,1747673439467,-2293.11,0.00019178,2]
[361659476,1747673439476,-430.0,0.00019178,2]
[361659477,1747673439486,-1857.27,0.00019178,2]
[361659478,1747673439495,-430.0,0.00019178,2]
[361659479,1747673439504,-430.0,0.00019178,2]
[361659480,1747673439513,-430.0,0.00019178,2]
[361659481,1747673439522,-430.0,0.00019178,2]
[361659482,1747673439531,-430.0,0.00019178,2]
[361659483,1747673439616,-1144.74,0.00019178,2]
[361659484,1747673439626,-430.0,0.00019178,2]
[361659485,1747673439636,-1419.13,0.00019178,2]
[361659486,1747673439645,-430.0,0.00019178,2]
[361659487,1747673439655,-1419.13,0.00019178,2]
[361659488,1747673439664,-401.12213207,0.00019178,2]
[361659489,1747673439673,-1419.13,0.00019178,2]
[361659490,1747673439683,-1419.13,0.00019178,2]
[361659491,1747673439693,-1419.13,0.00019178,2]
[361659492,1747673439703,-1419.13,0.00019178,2]
[361659493,1747673439712,-430.0,0.00019178,2]
[361659494,1747673439723,-430.0,0.00019178,2]
[361659495,1747673439733,-1419.13,0.00019178,2]
[361659496,1747673439742,-1419.13,0.00019178,2]
[361659497,1747673439752,-1419.13,0.00019178,2]
[361659498,1747673439761,-400.0,0.00019178,2]
[361659499,1747673439770,-1419.13,0.00019178,2]
[361659500,1747673439779,-1419.13,0.00019178,2]
[361659501,1747673439789,-1419.13,0.00019178,2]
[361659502,1747673439799,-430.0,0.00019178,2]
[361659503,1747673439809,-1419.13,0.00019178,2]
[361659504,1747673439819,-1419.13,0.00019178,2]
[361659505,1747673439830,-1419.13,0.00019178,2]
[361659506,1747673439839,-1419.13,0.00019178,2]
[361659507,1747673439849,-430.0,0.00019178,2]
[361659508,1747673439858,-1419.13,0.00019178,2]
[361659509,1747673439867,-1490.6,0.00019178,2]
[361659510,1747673439876,-500.0,0.00019178,2]
[361659511,1747673439886,-1419.13,0.00019178,2]
[361659512,1747673439896,-1419.13,0.00019178,2]
[361659513,1747673439905,-1419.13,0.00019178,2]
[361659514,1747673439915,-430.0,0.00019178,2]
[361659515,1747673439925,-1419.13,0.00019178,2]
[361659516,1747673439935,-1419.13,0.00019178,2]
[361659517,1747673439946,-266.38857307,0.00019178,2]
[361659518,1747673439956,-1419.13,0.00019178,2]
[361659519,1747673439966,-1419.14042197,0.00019178,2]
[361659520,1747673439975,-500.0,0.00019178,2]
[361659521,1747673439985,-500.0,0.00019178,2]
[361659522,1747673439994,-450.0,0.00019178,2]
[361659523,1747673440003,-445.96,0.00019178,2]
[361659524,1747673440012,-630.79923733,0.00019178,2]
[361659525,1747673440022,-4190.18,0.00019178,2]
[361659526,1747673440032,-430.0,0.00019178,2]
[361659527,1747673440042,-450.0,0.00019178,2]
[361659528,1747673440052,-430.0,0.00019178,2]
[361659529,1747673440062,-430.0,0.00019178,2]
[361659530,1747673440071,-430.0,0.00019178,2]
[361659531,1747673440080,-430.0,0.00019178,2]
[361659533,1747673440090,-390.0,0.00019178,2]
[361659534,1747673440101,-466.64,0.00019178,2]
[361659535,1747673440113,-1518.96,0.00019178,2]
[361659536,1747673440123,-430.0,0.00019178,2]
[361659537,1747673440133,-430.0,0.00019178,2]
[361659538,1747673440143,-430.0,0.00019178,2]
[361659540,1747673440153,-430.0,0.00019178,2]
[361659541,1747673440163,-430.0,0.00019178,2]
[361659542,1747673440173,-430.0,0.00019178,2]
[361659543,1747673440185,-430.0,0.00019178,2]
[361659544,1747673440207,-430.0,0.00019178,2]
[361659545,1747673440224,-430.0,0.00019178,2]
[361659546,1747673440244,-914.36,0.00019178,2]
[361659547,1747673440263,-430.0,0.00019178,2]
[361659548,1747673440283,-430.0,0.00019178,2]
[361659549,1747673440299,-430.0,0.00019178,2]
[361659550,1747673440320,-5018.26,0.00019178,2]
[361659551,1747673440333,-450.0,0.00019178,2]
[361659552,1747673440349,-382.14099704,0.00019178,2]
[361659554,1747673440369,-430.0,0.00019178,2]
[361659555,1747673440389,-430.0,0.00019178,2]
[361659556,1747673440404,-430.0,0.00019178,2]
[361659557,1747673440419,-430.0,0.00019178,2]
[361659558,1747673440437,-430.0,0.00019178,2]
[361659559,1747673440451,-430.0,0.00019178,2]
[361659561,1747673440467,-430.0,0.00019178,2]
[361659562,1747673440481,-430.0,0.00019178,2]
[361659563,1747673440497,-430.0,0.00019178,2]
[361659564,1747673440512,-501.0612214,0.00019178,2]
[361659566,1747673440525,-449.85,0.00019178,2]
[361659567,1747673440540,-430.0,0.00019178,2]
[361659568,1747673440554,-503.78771177,0.00019178,2]
[361659569,1747673440569,-430.0,0.00019178,2]
[361659570,1747673440583,-465.4124812,0.00019178,2]
[361659571,1747673440598,-430.0,0.00019178,2]
[361659572,1747673440615,-430.0,0.00019178,2]
[361659573,1747673440630,-400.53730689,0.00019178,2]
[361659574,1747673440644,-500.93762861,0.00019178,2]
[361659576,1747673440659,-935.87,0.00019178,2]
[361659577,1747673440674,-430.0,0.00019178,2]
[361659578,1747673440689,-1037.66,0.00019178,2]
[361659579,1747673440704,-430.0,0.00019178,2]
[361659580,1747673440718,-430.0,0.00019178,2]
[361659581,1747673440733,-430.0,0.00019178,2]
[361659582,1747673440747,-430.0,0.00019178,2]
[361659583,1747673440761,-430.0,0.00019178,2]
[361659584,1747673440775,-430.0,0.00019178,2]
[361659585,1747673440789,-430.0,0.00019178,2]
[361659586,1747673440803,-430.0,0.00019178,2]
[361659587,1747673440818,-430.0,0.00019178,2]
[361659588,1747673440832,-464.09791801,0.00019178,2]
[361659589,1747673440846,-430.0,0.00019178,2]
[361659590,1747673440860,-415.38695324,0.00019178,2]
[361659591,1747673440874,-430.0,0.00019178,2]
[361659592,1747673440888,-430.0,0.00019178,2]
[361659593,1747673440903,-3021.61,0.00019178,2]
[361659594,1747673440918,-677.47,0.00019178,2]
[361659595,1747673440932,-430.0,0.00019178,2]
[361659596,1747673440946,-430.0,0.00019178,2]
[361659597,1747673440961,-402.51580347,0.00019178,2]
[361659598,1747673440976,-435.11747896,0.00019178,2]
[361659599,1747673440992,-500.0,0.00019178,2]
[361659600,1747673441005,-2212.85,0.00019178,2]
[361659601,1747673441019,-430.0,0.00019178,2]
[361659602,1747673441033,-430.0,0.00019178,2]
[361659603,1747673441047,-400.0,0.00019178,2]
[361659604,1747673441062,-430.0,0.00019178,2]
[361659605,1747673441072,-430.0,0.00019178,2]
[361659606,1747673441202,-430.0,0.00019178,2]
[361659607,1747673441212,-430.0,0.00019178,2]
[361659608,1747673441224,-430.0,0.00019178,2]
[361659609,1747673441233,-430.0,0.00019178,2]
[361659610,1747673441242,-430.0,0.00019178,2]
[361659611,1747673441251,-430.0,0.00019178,2]
[361659612,1747673441260,-430.0,0.00019178,2]
[361659613,1747673441270,-430.0,0.00019178,2]
[361659614,1747673441279,-430.0,0.00019178,2]
[361659615,1747673441288,-430.0,0.00019178,2]
[361659616,1747673441298,-430.0,0.00019178,2]
[361659617,1747673441307,-1274.4,0.00019178,2]
[361659618,1747673441316,-430.0,0.00019178,2]
[361659619,1747673441327,-400.84757874,0.00019178,2]
[361659620,1747673441337,-430.0,0.00019178,2]
[361659621,1747673441347,-1626.08,0.00019178,2]
[361659622,1747673441358,-460.34,0.00019178,2]
[361659623,1747673441367,-430.0,0.00019178,2]
[361659624,1747673441376,-328.54376891,0.00019178,2]
[361659625,1747673441385,-430.0,0.00019178,2]
[361659626,1747673441395,-430.0,0.00019178,2]
[361659627,1747673441403,-400.0,0.00019178,2]
[361659628,1747673441412,-430.0,0.00019178,2]
[361659629,1747673441422,-430.0,0.00019178,2]
[361659630,1747673441431,-400.0,0.00019178,2]
[361659631,1747673441441,-430.0,0.00019178,2]
[361659632,1747673441451,-430.0,0.00019178,2]
[361659633,1747673441460,-589.62,0.00019178,2]
[361659634,1747673441469,-430.0,0.00019178,2]
[361659635,1747673441479,-430.0,0.00019178,2]
[361659636,1747673441488,-906.22,0.00019178,2]
[361659637,1747673441497,-487.54,0.00019178,2]
[361659638,1747673441506,-430.0,0.00019178,2]
[361659639,1747673441516,-450.0,0.00019178,2]
[361659640,1747673441525,-1874.43,0.00019178,2]
[361659641,1747673441534,-430.0,0.00019178,2]
[361659642,1747673441543,-430.0,0.00019178,2]
[361659643,1747673441553,-430.0,0.00019178,2]
[361659644,1747673441562,-430.0,0.00019178,2]
[361659645,1747673441572,-430.0,0.00019178,2]
[361659646,1747673441582,-430.0,0.00019178,2]
[361659647,1747673441592,-613.28,0.00019178,2]
[361659648,1747673441602,-430.0,0.00019178,2]
[361659649,1747673441612,-1170.22,0.00019178,2]
[361659650,1747673441623,-430.0,0.00019178,2]
[361659651,1747673441633,-1119.33,0.00019178,2]
[361659652,1747673441643,-1468.2,0.00019178,2]
[361659653,1747673441652,-430.0,0.00019178,2]
[361659654,1747673441662,-430.0,0.00019178,2]
[361659655,1747673441671,-3024.99,0.00019178,2]
[361659656,1747673441680,-430.0,0.00019178,2]
[361659657,1747673441693,-401.42364697,0.00019178,2]
[361659658,1747673441703,-430.0,0.00019178,2]
[361659659,1747673441712,-430.0,0.00019178,2]
[361659660,1747673441721,-151.0,0.00019178,2]
[361659661,1747673441731,-430.0,0.00019178,2]
[361659662,1747673441740,-430.0,0.00019178,2]
[361659663,1747673441750,-403.58378318,0.00019178,2]
[361659664,1747673441759,-430.0,0.00019178,2]
[361659665,1747673441768,-430.0,0.00019178,2]
[361659666,1747673441778,-400.0,0.00019178,2]
[361659667,1747673441788,-430.0,0.00019178,2]
[361659668,1747673441797,-430.0,0.00019178,2]
[361659669,1747673441807,-1381.12,0.00019178,2]
[361659670,1747673441816,-430.0,0.00019178,2]
[361659671,1747673441825,-430.0,0.00019178,2]
[361659672,1747673441834,-470.0,0.00019178,2]
[361659673,1747673441843,-430.0,0.00019178,2]
[361659674,1747673441852,-430.0,0.00019178,2]
[361659675,1747673441863,-430.0,0.00019178,2]
[361659676,1747673441874,-430.0,0.00019178,2]
[361659677,1747673441884,-888.98,0.00019178,2]
[361659678,1747673441894,-430.0,0.00019178,2]
[361659679,1747673441903,-430.0,0.00019178,2]
[361659680,1747673441914,-727.04,0.00019178,2]
[361659681,1747673441923,-676.66,0.00019178,2]
[361659682,1747673441934,-522.7,0.00019178,2]
[361659683,1747673441943,-430.0,0.00019178,2]
[361659684,1747673441952,-430.0,0.00019178,2]
[361659685,1747673441961,-430.0,0.00019178,2]
[361659686,1747673441970,-430.0,0.00019178,2]
[361659687,1747673441980,-430.0,0.00019178,2]
[361659688,1747673441990,-430.0,0.00019178,2]
[361659689,1747673442000,-767.44,0.00019178,2]
[361659690,1747673442010,-430.0,0.00019178,2]
[361659691,1747673442019,-430.0,0.00019178,2]
[361659692,1747673442028,-430.0,0.00019178,2]
[361659693,1747673442038,-430.0,0.00019178,2]
[361659694,1747673442047,-430.0,0.00019178,2]
[361659695,1747673442056,-430.0,0.00019178,2]
[361659696,1747673442066,-430.0,0.00019178,2]
[361659697,1747673442075,-430.0,0.00019178,2]
[361659698,1747673442084,-503.89200455,0.00019178,2]
[361659699,1747673442093,-430.0,0.00019178,2]
[361659700,1747673442104,-430.0,0.00019178,2]
[361659701,1747673442114,-430.0,0.00019178,2]
[361659702,1747673442123,-745.96,0.00019178,2]
[361659703,1747673442132,-605.49,0.00019178,2]
[361659704,1747673442141,-402.29175014,0.00019178,2]
[361659705,1747673442152,-430.0,0.00019178,2]
[361659706,1747673442162,-400.0,0.00019178,2]
[361659707,1747673442171,-430.0,0.00019178,2]
[361659708,1747673442181,-430.0,0.00019178,2]
[361659709,1747673442190,-430.0,0.00019178,2]
[361659710,1747673442199,-498.79,0.00019178,2]
[361659711,1747673442209,-430.0,0.00019178,2]
[361659712,1747673442218,-217.85562789,0.00019178,2]
[361659713,1747673442227,-345.93090145,0.00019178,2]
[361659714,1747673442237,-470.0,0.00019178,2]
[361659715,1747673442246,-303.43487864,0.00019178,2]
[361659716,1747673442255,-430.0,0.00019178,2]
[361659717,1747673442264,-430.0,0.00019178,2]
[361659718,1747673442275,-430.0,0.00019178,2]
[361659719,1747673442284,-554.02,0.00019178,2]
[361659720,1747673442293,-724.22,0.00019178,2]
[361659721,1747673442302,-450.0,0.00019178,2]
[361659722,1747673442311,-1448.33,0.00019178,2]
[361659723,1747673442320,-430.0,0.00019178,2]
[361659724,1747673442330,-2219.28,0.00019178,2]
[361659725,1747673442339,-400.0,0.00019178,2]
[361659726,1747673442348,-306.47459831,0.00019178,2]
[361659727,1747673442358,-430.0,0.00019178,2]
[361659728,1747673442367,-400.0,0.00019178,2]
[361659729,1747673442376,-2030.49,0.00019178,2]
[361659730,1747673442385,-502.23042331,0.00019178,2]
[361659731,1747673442395,-430.0,0.00019178,2]
[361659732,1747673442404,-430.0,0.00019178,2]
[361659733,1747673442413,-301.24020466,0.00019178,2]
[361659734,1747673442422,-430.0,0.00019178,2]
[361659735,1747673442432,-1782.89,0.00019178,2]
[361659736,1747673442441,-1286.86,0.00019178,2]
[361659737,1747673442451,-430.0,0.00019178,2]
[361659738,1747673442461,-2627.35,0.00019178,2]
[361659739,1747673442470,-306.17814387,0.00019178,2]
[361659740,1747673442480,-430.0,0.00019178,2]
[361659741,1747673442489,-430.0,0.00019178,2]
[361659742,1747673442499,-400.0,0.00019178,2]
[361659743,1747673442509,-430.0,0.00019178,2]
[361659744,1747673442519,-712.45,0.00019178,2]
[361659745,1747673442529,-430.0,0.00019178,2]
[361659746,1747673442539,-513.81692754,0.00019178,2]
[361659747,1747673442548,-306.13285947,0.00019178,2]
[361659748,1747673442558,-4232.35,0.00019178,2]
[361659749,1747673442567,-430.0,0.00019178,2]
[361659750,1747673442577,-430.0,0.00019178,2]
[361659751,1747673442587,-709.73,0.00019178,2]
[361659752,1747673442596,-888.05,0.00019178,2]
[361659753,1747673442605,-585.09,0.00019178,2]
[361659754,1747673442615,-430.0,0.00019178,2]
[361659755,1747673442625,-430.0,0.00019178,2]
[361659756,1747673442634,-430.0,0.00019178,2]
[361659757,1747673442644,-436.97923209,0.00019178,2]
[361659758,1747673442653,-430.0,0.00019178,2]
[361659759,1747673442663,-430.0,0.00019178,2]
[361659760,1747673442674,-430.0,0.00019178,2]
[361659761,1747673442684,-430.0,0.00019178,2]
[361659762,1747673442694,-430.0,0.00019178,2]
[361659763,1747673442704,-430.0,0.00019178,2]
[361659764,1747673442713,-430.0,0.00019178,2]
[361659765,1747673442722,-430.0,0.00019178,2]
[361659766,1747673442732,-1662.46,0.00019178,2]
[361659767,1747673442742,-5124.74,0.00019178,2]
[361659768,1747673442751,-430.0,0.00019178,2]
[361659769,1747673442761,-430.0,0.00019178,2]
[361659770,1747673442770,-430.0,0.00019178,2]
[361659771,1747673442780,-430.0,0.00019178,2]
[361659772,1747673442789,-157.21894377,0.00019178,2]
[361659773,1747673442799,-430.0,0.00019178,2]
[361659774,1747673442809,-765.03,0.00019178,2]
[361659775,1747673442819,-400.0,0.00019178,2]
[361659776,1747673442828,-286.49491568,0.00019178,2]
[361659777,1747673442838,-1000.0,0.00019178,2]
[361659778,1747673442847,-213.611777,0.00019178,2]
[361659779,1747673442857,-3789.66419569,0.0001922,2]
[361659780,1747673442953,-621.73833793,0.00019444,2]
[361659781,1747673442970,-151.0,0.00019451,2]
[361659782,1747673442979,-151.253534,0.00019452,2]
[361659783,1747673442989,-151.0,0.00019452,2]
[361659784,1747673442999,-219.137551,0.00019452,2]
[361659785,1747673443008,-151.0,0.00019452,2]
[361659786,1747673443018,-273.837982,0.00019452,2]
[361659787,1747673443028,-151.0,0.00019452,2]
[361659789,1747673443037,-273.837982,0.00019452,2]
[361659790,1747673443047,-151.0,0.00019452,2]
[361659791,1747673443057,-331.15364296,0.00019452,2]
[361659792,1747673443067,-400.0,0.00019452,2]
[361659793,1747673443077,-430.0,0.00019452,2]
[361659794,1747673443086,-430.0,0.00019452,2]
[361659796,1747673443096,-430.0,0.00019452,2]
[361659797,1747673443108,-430.0,0.00019452,2]
[361659798,1747673443117,-430.0,0.00019452,2]
[361659799,1747673443127,-430.0,0.00019452,2]
[361659801,1747673443137,-430.0,0.00019452,2]
[361659803,1747673443147,-375.2185052,0.00019452,2]
[361659805,1747673443156,-430.0,0.00019452,2]
[361659807,1747673443165,-430.0,0.00019452,2]
[361659809,1747673443175,-430.0,0.00019452,2]
[361659811,1747673443187,-430.0,0.00019452,2]
[361659812,1747673443198,-430.0,0.00019452,2]
[361659813,1747673443208,-316.23431929,0.00019452,2]
[361659814,1747673443217,-430.0,0.00019452,2]
[361659815,1747673443227,-430.0,0.00019452,2]
[361659816,1747673443237,-430.0,0.00019452,2]
[361659818,1747673443246,-430.0,0.00019452,2]
[361659819,1747673443256,-430.0,0.00019452,2]
[361659820,1747673443266,-690.03,0.00019452,2]
[361659821,1747673443276,-490.0,0.00019452,2]
[361659822,1747673443286,-493.25616664,0.00019452,2]
[361659823,1747673443295,-430.0,0.00019452,2]
[361659825,1747673443305,-430.0,0.00019452,2]
[361659826,1747673443314,-430.0,0.00019452,2]
[361659828,1747673443323,-430.0,0.00019452,2]
[361659829,1747673443332,-430.0,0.00019452,2]
[361659831,1747673443342,-430.0,0.00019452,2]
[361659833,1747673443351,-430.0,0.00019452,2]
[361659834,1747673443361,-430.0,0.00019452,2]
[361659836,1747673443370,-430.0,0.00019452,2]
[361659837,1747673443379,-430.0,0.00019452,2]
[361659838,1747673443389,-190.00000001,0.00019452,2]
[361659839,1747673443399,-430.0,0.00019452,2]
[361659840,1747673443408,-430.0,0.00019452,2]
[361659841,1747673443417,-430.0,0.00019452,2]
[361659842,1747673443426,-430.0,0.00019452,2]
[361659843,1747673443437,-486.35656406,0.00019452,2]
[361659844,1747673443446,-430.0,0.00019452,2]
[361659845,1747673443456,-732.1,0.00019452,2]
[361659846,1747673443465,-363.02849026,0.00019452,2]
[361659847,1747673443475,-430.0,0.00019452,2]
[361659848,1747673443484,-381.58729854,0.00019452,2]
[361659849,1747673443493,-866.91,0.00019452,2]
[361659850,1747673443503,-430.0,0.00019452,2]
[361659851,1747673443512,-308.47321506,0.00019452,2]
[361659852,1747673443522,-262.28031177,0.00019452,2]
[361659853,1747673443531,-294.1140685,0.00019452,2]
[361659854,1747673443540,-430.0,0.00019452,2]
[361659856,1747673443549,-430.0,0.00019452,2]
[361659857,1747673443560,-151.0,0.00019452,2]
[361659858,1747673443569,-430.0,0.00019452,2]
[361659859,1747673443579,-151.0,0.00019452,2]
[361659860,1747673443588,-430.0,0.00019452,2]
[361659861,1747673443597,-430.0,0.00019452,2]
[361659862,1747673443607,-151.0,0.00019452,2]
[361659863,1747673443617,-430.0,0.00019452,2]
[361659864,1747673443626,-151.0,0.00019452,2]
[361659865,1747673443636,-151.0,0.00019452,2]
[361659866,1747673443646,-430.0,0.00019452,2]
[361659867,1747673443655,-430.0,0.00019452,2]
[361659868,1747673443664,-430.0,0.00019452,2]
[361659869,1747673443673,-430.0,0.00019452,2]
[361659870,1747673443682,-430.0,0.00019452,2]
[361659871,1747673443692,-430.0,0.00019452,2]
[361659872,1747673443702,-430.0,0.00019452,2]
[361659873,1747673443711,-193.10954771,0.00019452,2]
[361659874,1747673443720,-430.0,0.00019452,2]
[361659875,1747673443729,-430.0,0.00019452,2]
[361659876,1747673443738,-430.0,0.00019452,2]
[361659877,1747673443747,-332.05495158,0.00019452,2]
[361659879,1747673443757,-455.63750211,0.00019452,2]
[361659881,1747673443766,-430.0,0.00019452,2]
[361659883,1747673443775,-430.0,0.00019452,2]
[361659885,1747673443784,-430.0,0.00019452,2]
[361659887,1747673443793,-534.43,0.00019452,2]
[361659889,1747673443802,-707.31,0.00019452,2]
[361659890,1747673443812,-3491.71,0.00019452,2]
[361659891,1747673443821,-151.0,0.00019452,2]
[361659892,1747673443830,-151.0,0.00019452,2]
[361659893,1747673443840,-420.0,0.00019452,2]
[361659894,1747673443850,-367.77639282,0.00019452,2]
[361659896,1747673443859,-420.0,0.00019452,2]
[361659897,1747673443869,-430.0,0.00019452,2]
[361659899,1747673443878,-430.0,0.00019452,2]
[361659900,1747673443887,-151.0,0.00019452,2]
[361659902,1747673443897,-151.0,0.00019452,2]
[361659904,1747673443905,-151.0,0.00019452,2]
[361659905,1747673443915,-151.0,0.00019452,2]
[361659906,1747673443924,-444.58,0.00019452,2]
[361659907,1747673443933,-430.0,0.00019452,2]
[361659909,1747673443943,-364.55153147,0.00019452,2]
[361659911,1747673443952,-370.0,0.00019452,2]
[361659912,1747673443961,-430.0,0.00019452,2]
[361659914,1747673443971,-420.0,0.00019452,2]
[361659915,1747673443981,-430.0,0.00019452,2]
[361659916,1747673443991,-443.1284119,0.00019452,2]
[361659917,1747673444000,-430.0,0.00019452,2]
[361659918,1747673444009,-342.87887713,0.00019452,2]
[361659920,1747673444018,-565.23017228,0.00019452,2]
[361659922,1747673444028,-430.0,0.00019452,2]
[361659924,1747673444037,-450.0,0.00019452,2]
[361659925,1747673444047,-430.0,0.00019452,2]
[361659926,1747673444056,-430.0,0.00019452,2]
[361659927,1747673444066,-466.57344325,0.00019452,2]
[361659928,1747673444076,-398.50078558,0.00019452,2]
[361659929,1747673444085,-151.0,0.00019452,2]
[361659930,1747673444094,-151.0,0.00019452,2]
[361659931,1747673444106,-772.36,0.00019452,2]
[361659932,1747673444116,-516.29629351,0.00019452,2]
[361659934,1747673444126,-542.08733713,0.00019452,2]
[361659936,1747673444136,-343.33243676,0.00019452,2]
[361659937,1747673444146,-430.0,0.00019452,2]
[361659938,1747673444157,-363.73473975,0.00019452,2]
[361659939,1747673444166,-541.11559276,0.00019452,2]
[361659940,1747673444176,-430.0,0.00019452,2]
[361659941,1747673444188,-416.64939228,0.00019452,2]
[361659942,1747673444198,-430.0,0.00019452,2]
[361659943,1747673444207,-430.0,0.00019452,2]
[361659944,1747673444217,-430.0,0.00019452,2]
[361659945,1747673444226,-430.0,0.00019452,2]
[361659946,1747673444235,-290.626207,0.00019452,2]
[361659947,1747673444245,-430.0,0.00019452,2]
[361659948,1747673444254,-170.15908017,0.00019452,2]
[361659949,1747673444264,-314.10289117,0.00019452,2]
[361659950,1747673444274,-430.0,0.00019452,2]
[361659951,1747673444284,-430.0,0.00019452,2]
[361659952,1747673444293,-430.0,0.00019452,2]
[361659953,1747673444303,-420.0,0.00019452,2]
[361659954,1747673444313,-902.97,0.00019452,2]
[361659955,1747673444323,-430.0,0.00019452,2]
[361659956,1747673444333,-491.69,0.00019452,2]
[361659957,1747673444345,-151.0,0.00019452,2]
[361659959,1747673444354,-151.0,0.00019452,2]
[361659960,1747673444365,-151.0,0.00019452,2]
[361659961,1747673444375,-430.0,0.00019452,2]
[361659962,1747673444385,-430.0,0.00019452,2]
[361659963,1747673444395,-353.22333873,0.00019452,2]
[361659965,1747673444405,-450.0,0.00019452,2]
[361659966,1747673444415,-445.2242296,0.00019452,2]
[361659967,1747673444425,-400.53737934,0.00019452,2]
[361659968,1747673444434,-430.0,0.00019452,2]
[361659969,1747673444446,-430.0,0.00019452,2]
[361659970,1747673444455,-430.0,0.00019452,2]
[361659971,1747673444465,-407.12993596,0.00019452,2]
[361659972,1747673444475,-370.0,0.00019452,2]
[361659973,1747673444484,-430.0,0.00019452,2]
[361659974,1747673444493,-430.0,0.00019452,2]
[361659975,1747673444502,-446.33880489,0.00019452,2]
[361659976,1747673444594,-430.0,0.00019452,2]
[361659977,1747673444604,-430.0,0.00019452,2]
[361659978,1747673444614,-430.0,0.00019452,2]
[361659979,1747673444623,-430.0,0.00019452,2]
[361659980,1747673444633,-430.0,0.00019452,2]
[361659981,1747673444643,-528.01,0.00019452,2]
[361659982,1747673444653,-799.88,0.00019452,2]
[361659983,1747673444662,-430.0,0.00019452,2]
[361659984,1747673444672,-354.06959021,0.00019452,2]